fUST/lending_fUST_20250917
["ID","MTS","AMOUNT","RATE_DAILY","PERIOD"]
[385882657,1758090638349,-745.13,0.00023013,3]
[385882658,1758090638357,-480.0,0.00023013,3]
[385882659,1758090638366,-480.0,0.00023013,3]
[385882660,1758090638375,-480.0,0.00023013,3]
[385882661,1758090638383,-480.0,0.00023013,3]
[385882662,1758090638392,-761.49,0.00023013,3]
[385882663,1758090638400,-480.0,0.00023013,3]
[385882664,1758090638409,-480.0,0.00023013,3]
[385882665,1758090638417,-591.17,0.00023013,3]
[385882666,1758090638426,-480.0,0.00023013,3]
[385882667,1758090638435,-4319.87,0.00023013,3]
[385882668,1758090638444,-480.0,0.00023013,3]
[385882669,1758090638453,-504.916189,0.00023013,2]
[385882670,1758090638462,-2148.85,0.00023013,3]
[385882671,1758090638470,-160.0,0.00023062,2]
[385882672,1758090638479,-272.2599297,0.00023272,2]
[385882673,1758090638487,-333.35642079,0.00023287,3]
[385882674,1758090638495,-480.0,0.00023287,3]
[385882675,1758090638504,-480.0,0.00023287,3]
[385882676,1758090638513,-480.0,0.00023287,3]
[385882677,1758090638521,-190.60768841,0.00023287,3]
[385882678,1758090638529,-480.0,0.00023287,3]
[385882679,1758090638539,-970.65,0.00023287,3]
[385882680,1758090638548,-480.0,0.00023287,3]
[385882681,1758090638557,-441.87022583,0.00023287,3]
[385882682,1758090638566,-5458.86,0.00023287,2]
[385882683,1758090638575,-547.87616794,0.00023287,3]
[385882684,1758090638584,-480.0,0.00023287,3]
[385882685,1758090638594,-683.96,0.00023287,3]
[385882686,1758090638603,-1155.91,0.00023287,3]
[385882687,1758090638613,-480.0,0.00023287,3]
[385882688,1758090638622,-516.18,0.00023287,3]
[385882689,1758090638631,-480.0,0.00023287,3]
[385882690,1758090638641,-353.11076524,0.00023287,3]
[385882691,1758090638650,-480.0,0.00023287,3]
[385882692,1758090638659,-480.0,0.00023287,3]
[385882693,1758090638668,-480.0,0.00023287,3]
[385882694,1758090638678,-480.0,0.00023287,3]
[385882695,1758090638687,-480.0,0.00023287,3]
[385882696,1758090638696,-574.29,0.00023287,3]
[385882697,1758090638706,-480.0,0.00023287,3]
[385882698,1758090638717,-480.0,0.00023287,3]
[385882699,1758090638726,-745.13,0.00023287,3]
[385882700,1758090638735,-480.0,0.00023287,3]
[385882701,1758090638745,-480.0,0.00023287,3]
[385882702,1758090638755,-480.0,0.00023287,3]
[385882703,1758090638764,-761.49,0.00023287,3]
[385882704,1758090638773,-480.0,0.00023287,3]
[385882705,1758090638782,-480.0,0.00023287,3]
[385882706,1758090638791,-591.17,0.00023287,3]
[385882707,1758090638801,-480.0,0.00023287,3]
[385882708,1758090638810,-4319.87,0.00023287,3]
[385882709,1758090638818,-480.0,0.00023287,3]
[385882710,1758090638828,-2148.85,0.00023287,3]
[385882711,1758090638837,-1008.58252175,0.00023318,2]
[385882712,1758090638846,-200.0,0.00023561,2]
[385882713,1758090638856,-200.0,0.00023561,3]
[385882714,1758090638865,-200.0,0.00023561,3]
[385882715,1758090638874,-200.0,0.00023561,3]
[385882716,1758090638884,-200.0,0.00023561,3]
[385882717,1758090638893,-200.0,0.00023561,3]
[385882718,1758090638902,-200.0,0.00023561,3]
[385882719,1758090638912,-480.0,0.00023561,3]
[385882720,1758090638921,-480.0,0.00023561,3]
[385882721,1758090638930,-338.76680846,0.00023561,3]
[385882722,1758090638940,-480.0,0.00023561,3]
[385882723,1758090638949,-970.65,0.00023561,3]
[385882724,1758090638958,-480.0,0.00023561,3]
[385882725,1758090638968,-480.0,0.00023561,3]
[385882726,1758090638978,-683.96,0.00023561,3]
[385882727,1758090638989,-1155.91,0.00023561,3]
[385882728,1758090638999,-480.0,0.00023561,3]
[385882729,1758090639008,-516.18,0.00023561,3]
[385882730,1758090639017,-480.0,0.00023561,3]
[385882731,1758090639027,-268.24880249,0.00023561,3]
[385882732,1758090639036,-480.0,0.00023561,3]
[385882733,1758090639045,-612.55781577,0.00023561,3]
[385882734,1758090639054,-480.0,0.00023561,3]
[385882735,1758090639063,-480.0,0.00023561,3]
[385882736,1758090639073,-574.29,0.00023561,3]
[385882737,1758090639082,-480.0,0.00023561,3]
[385882738,1758090639091,-523.03497711,0.00023561,3]
[385882739,1758090639100,-745.13,0.00023561,3]
[385882740,1758090639110,-480.0,0.00023561,3]
[385882741,1758090639119,-480.0,0.00023561,3]
[385882742,1758090639129,-480.0,0.00023561,3]
[385882743,1758090639138,-761.49,0.00023561,3]
[385882744,1758090639147,-480.0,0.00023561,3]
[385882745,1758090639157,-480.0,0.00023561,3]
[385882746,1758090639168,-591.17,0.00023561,3]
[385882747,1758090639178,-480.0,0.00023561,3]
[385882748,1758090639187,-4319.87,0.00023561,3]
[385882749,1758090639196,-480.0,0.00023561,3]
[385882750,1758090639206,-2148.85,0.00023561,3]
[385882751,1758090639215,-1067.16,0.000236,7]
[385882752,1758090639225,-260.0,0.00023609,2]
[385882753,1758090639234,-311.65084366,0.00023647,2]
[385882754,1758090639243,-420.0,0.00023711,2]
[385882755,1758090639253,-550.29543034,0.00023735,2]
[385882756,1758090639263,-501.88045497,0.00023736,2]
[385882757,1758090639272,-500.0,0.00023742,2]
[385882758,1758090639281,-193.18371599,0.00023742,2]
[385882759,1758090639290,-193.21931585,0.00023742,2]
[385882760,1758090639300,-419.31223178,0.00023742,2]
[385882761,1758090639309,-12171.75,0.00023743,2]
[385882762,1758090639318,-600.0,0.00023756,20]
[385882763,1758090639328,-754.46553925,0.00023781,2]
[385882764,1758090639337,-200.0,0.00023835,3]
[385882765,1758090639346,-184.13289168,0.00023835,3]
[385882766,1758090639355,-480.0,0.00023835,3]
[385882767,1758090639364,-480.0,0.00023835,3]
[385882768,1758090639374,-970.65,0.00023835,3]
[385882769,1758090639383,-480.0,0.00023835,3]
[385882770,1758090639392,-480.0,0.00023835,3]
[385882771,1758090639402,-683.96,0.00023835,3]
[385882772,1758090639411,-1155.91,0.00023835,3]
[385882773,1758090639421,-480.0,0.00023835,3]
[385882774,1758090639430,-516.18,0.00023835,3]
[385882775,1758090639439,-480.0,0.00023835,3]
[385882776,1758090639449,-480.0,0.00023835,3]
[385882777,1758090639458,-436.57841279,0.00023835,3]
[385882778,1758090639467,-480.0,0.00023835,3]
[385882780,1758090639477,-574.29,0.00023835,3]
[385882781,1758090639486,-480.0,0.00023835,3]
[385882782,1758090639495,-745.13,0.00023835,3]
[385882783,1758090639504,-480.0,0.00023835,3]
[385882785,1758090639612,-591.6283543,0.00023835,3]
[385882786,1758090639623,-215.53266787,0.00023835,3]
[385882787,1758090639632,-761.49,0.00023835,3]
[385882788,1758090639642,-480.0,0.00023835,3]
[385882789,1758090639651,-480.0,0.00023835,3]
[385882790,1758090639660,-591.17,0.00023835,3]
[385882791,1758090639670,-480.0,0.00023835,3]
[385882792,1758090639679,-4319.87,0.00023835,3]
[385882793,1758090639688,-480.0,0.00023835,3]
[385882795,1758090639698,-2148.85,0.00023835,3]
[385882797,1758090639707,-1252.13497363,0.0002398,2]
[385882798,1758090639716,-1457.18090859,0.0002399,2]
[385882799,1758090639725,-196.64140445,0.00024,2]
[385882800,1758090639735,-261.98940972,0.000241,2]
[385882801,1758090639745,-200.0,0.00024109,3]
[385882802,1758090639754,-150.0,0.00024109,2]
[385882803,1758090639765,-480.0,0.00024109,3]
[385882804,1758090639774,-480.0,0.00024109,3]
[385882805,1758090639784,-970.65,0.00024109,3]
[385882806,1758090639793,-480.0,0.00024109,3]
[385882807,1758090639802,-480.0,0.00024109,3]
[385882808,1758090639811,-683.96,0.00024109,3]
[385882809,1758090639820,-1155.91,0.00024109,3]
[385882810,1758090639829,-480.0,0.00024109,3]
[385882812,1758090639839,-516.18,0.00024109,3]
[385882814,1758090639848,-480.0,0.00024109,3]
[385882816,1758090639857,-480.0,0.00024109,3]
[385882818,1758090639866,-480.0,0.00024109,3]
[385882820,1758090639875,-574.29,0.00024109,3]
[385882822,1758090639884,-480.0,0.00024109,3]
[385882824,1758090639894,-745.13,0.00024109,3]
[385882826,1758090639902,-480.0,0.00024109,3]
[385882828,1758090639912,-761.49,0.00024109,3]
[385882830,1758090639921,-480.0,0.00024109,3]
[385882831,1758090639932,-480.0,0.00024109,3]
[385882833,1758090639942,-591.17,0.00024109,3]
[385882835,1758090639951,-480.0,0.00024109,3]
[385882837,1758090639961,-4319.87,0.00024109,3]
[385882839,1758090639970,-480.0,0.00024109,3]
[385882841,1758090639980,-2148.85,0.00024109,3]
[385882843,1758090639994,-360.0,0.00024157,2]
[385882845,1758090640003,-238.51321495,0.00024332,2]
[385882847,1758090640015,-1927.9615249,0.00024383,2]
[385882849,1758090640029,-200.0,0.00024383,3]
[385882851,1758090640046,-480.0,0.00024383,3]
[385882853,1758090640055,-480.0,0.00024383,3]
[385882855,1758090640066,-970.65,0.00024383,3]
[385882857,1758090640075,-480.0,0.00024383,3]
[385882858,1758090640084,-480.0,0.00024383,3]
[385882859,1758090640093,-683.96,0.00024383,3]
[385882860,1758090640103,-1155.91,0.00024383,3]
[385882861,1758090640113,-480.0,0.00024383,3]
[385882862,1758090640122,-516.18,0.00024383,3]
[385882863,1758090640131,-480.0,0.00024383,3]
[385882864,1758090640140,-480.0,0.00024383,3]
[385882865,1758090640148,-480.0,0.00024383,3]
[385882866,1758090640158,-74.43363061,0.00024383,3]
[385882867,1758090640218,-499.85636939,0.00024383,3]
[385882868,1758090640227,-480.0,0.00024383,3]
[385882869,1758090640236,-745.13,0.00024383,3]
[385882870,1758090640247,-560.41968372,0.00024383,3]
[385882871,1758090640256,-761.49,0.00024383,3]
[385882872,1758090640266,-480.0,0.00024383,3]
[385882873,1758090640275,-480.0,0.00024383,3]
[385882874,1758090640283,-591.17,0.00024383,3]
[385882875,1758090640293,-461.66615155,0.00024383,3]
[385882876,1758090640302,-4319.87,0.00024383,3]
[385882877,1758090640311,-480.0,0.00024383,3]
[385882878,1758090640320,-2148.85,0.00024383,3]
[385882879,1758090640330,-754.46553925,0.00024649,2]
[385882880,1758090640339,-200.0,0.00024657,3]
[385882881,1758090640348,-480.0,0.00024657,3]
[385882882,1758090640358,-480.0,0.00024657,3]
[385882883,1758090640367,-970.65,0.00024657,3]
[385882884,1758090640377,-480.0,0.00024657,3]
[385882885,1758090640386,-480.0,0.00024657,3]
[385882886,1758090640395,-683.96,0.00024657,3]
[385882887,1758090640404,-1155.91,0.00024657,3]
[385882888,1758090640413,-480.0,0.00024657,3]
[385882889,1758090640422,-516.18,0.00024657,3]
[385882890,1758090640431,-480.0,0.00024657,3]
[385882891,1758090640441,-480.0,0.00024657,3]
[385882892,1758090640450,-480.0,0.00024657,3]
[385882893,1758090640460,-574.29,0.00024657,3]
[385882894,1758090640470,-153.14000014,0.00024657,3]
[385882895,1758090640480,-745.13,0.00024657,3]
[385882896,1758090640489,-761.49,0.00024657,3]
[385882897,1758090640499,-480.0,0.00024657,3]
[385882898,1758090640508,-480.0,0.00024657,3]
[385882899,1758090640517,-591.17,0.00024657,3]
[385882900,1758090640526,-4319.87,0.00024657,3]
[385882901,1758090640536,-480.0,0.00024657,3]
[385882902,1758090640545,-2148.85,0.00024657,3]
[385882903,1758090640554,-500.0,0.00024658,2]
[385882904,1758090640563,-380.0,0.00024658,2]
[385882905,1758090640572,-498.35929258,0.0002468,2]
[385882906,1758090640581,-119.15314201,0.000247,7]
[385882907,1758090640597,-7862.82614194,0.000247,7]
[385882908,1758090640608,-3430.85880594,0.000247,7]
[385882909,1758090640619,-3123.11078108,0.000247,7]
[385882910,1758090640630,-10808.36112903,0.000247,7]
[385882911,1758090640639,-151.0,0.000247,7]
[385882912,1758090640648,-460.0,0.00024705,2]
[385882913,1758090640657,-800.0,0.00024712,2]
[385882914,1758090640667,-503.24120982,0.00024873,2]
[385882915,1758090640676,-501.2653284,0.00024873,2]
[385882916,1758090640685,-211.91585914,0.00024873,2]
[385882917,1758090640697,-288.08414086,0.00024873,2]
[385882918,1758090640706,-508.12903647,0.00024873,2]
[385882919,1758090640716,-89.75359783,0.00024873,2]
[385882920,1758090640730,-410.24640217,0.00024873,2]
[385882921,1758090640739,-500.0,0.00024873,2]
[385882922,1758090640749,-500.0,0.00024873,2]
[385882923,1758090640758,-500.0,0.00024873,2]
[385882924,1758090640768,-500.0,0.00024873,2]
[385882925,1758090640777,-500.0,0.00024873,2]
[385882926,1758090640786,-247.17902823,0.00024873,2]
[385882927,1758090640798,-252.82097177,0.00024873,2]
[385882928,1758090640807,-500.0,0.00024873,2]
[385882929,1758090640817,-500.0,0.00024873,2]
[385882930,1758090640827,-501.61088687,0.00024873,2]
[385882931,1758090640836,-500.0,0.00024873,2]
[385882932,1758090640845,-583.49596287,0.00024873,2]
[385882933,1758090640855,-500.0,0.00024873,2]
[385882934,1758090640864,-500.0,0.00024873,2]
[385882935,1758090640873,-500.0,0.00024873,2]
[385882936,1758090640882,-500.0,0.00024873,2]
[385882937,1758090640891,-311.65084366,0.00024896,2]
[385882938,1758090640901,-1501.81161934,0.000249,2]
[385882939,1758090640976,480.0,0.00021917,2]
[385882940,1758090641007,480.0,0.00021917,2]
[385882941,1758090641037,480.0,0.00022191,3]
[385882942,1758090641063,480.0,0.00022191,3]
[385882943,1758090641104,480.0,0.00022465,3]
[385882944,1758090641141,480.0,0.00022465,3]
[385883174,1758090646094,-480.0,0.00022739,3]
[385883175,1758090646103,-480.0,0.00022739,3]
[385883176,1758090646113,-461.25397664,0.00023013,3]
[385883177,1758090659010,480.0,0.00021917,2]
[385883178,1758090659042,626.12,0.00021917,2]
[385883179,1758090659292,626.12,0.00022191,3]
[385883180,1758090659423,480.0,0.00022191,3]
[385883181,1758090659542,626.12,0.00022465,3]
[385883182,1758090659814,626.12,0.00022739,3]
[385883183,1758090659842,480.0,0.00022465,3]
[385883184,1758090660444,480.0,0.00022739,3]
[385883185,1758090668812,5575.53,0.00021867,2]
[385883186,1758090668845,277.98,0.00021867,2]
[385883187,1758090669927,480.0,0.00021917,2]
[385883188,1758090670169,480.0,0.00022191,3]
[385883189,1758090670428,480.0,0.00022465,3]
[385883190,1758090709499,497.69860711,0.000199,2]
[385883191,1758090709630,497.69860696,0.00021149,2]
[385883192,1758090897279,447.92874638,0.000199,2]
[385883193,1758090897372,447.92874626,0.00021149,2]
[385883194,1758091078196,5779.01,0.00021746,2]
[385883195,1758091082841,434.65678364,0.000199,2]
[385883196,1758091082924,434.6567834,0.00021149,2]
[385883197,1758091164852,5705.46,0.00021747,2]
[385883198,1758091272750,405.56894315,0.000199,2]
[385883199,1758091273001,405.56894293,0.00021149,2]
[385883200,1758091465590,389.49244903,0.000199,2]
[385883201,1758091465683,389.49244876,0.00021149,2]
[385883202,1758091649614,5632.84,0.00021742,2]
[385883203,1758091663359,360.25961892,0.000199,2]
[385883204,1758091663453,360.25961884,0.00021149,2]
[385883210,1758091832395,-671.96876116,0.00021594,2]
[385883224,1758091838148,-357.39757858,0.00021594,2]
[385883225,1758091838159,-1971.70142234,0.00021594,2]
[385883226,1758091838170,-1041.5700025,0.00021594,2]
[385883234,1758091840290,-1518.51223542,0.00021594,2]
[385883235,1758091840300,-300.0,0.00021913,2]
[385883236,1758091840310,-514.0,0.00021913,2]
[385883237,1758091840319,-933.0,0.00021914,2]
[385883238,1758091840329,-300.0,0.00021914,2]
[385883239,1758091840338,-300.0,0.00021914,2]
[385883240,1758091840347,-300.0,0.00021914,2]
[385883241,1758091840357,-480.0,0.00021917,2]
[385883242,1758091840366,-480.0,0.00021917,2]
[385883243,1758091840375,-480.0,0.00021917,2]
[385883244,1758091840384,-2339.93,0.00021917,2]
[385883245,1758091840394,-480.0,0.00021917,2]
[385883246,1758091840403,-480.0,0.00021917,2]
[385883247,1758091840413,-287.82,0.00021917,2]
[385883248,1758091840432,-480.0,0.00021917,2]
[385883249,1758091840443,-442.68968358,0.00021917,2]
[385883260,1758091843514,-45.83031642,0.00021917,2]
[385883261,1758091843524,-222.64969358,0.00021917,2]
[385883327,1758091846212,-6162.39990356,0.00021917,2]
[385883329,1758091846221,-257.35030642,0.00021917,2]
[385883330,1758091846231,-498.36,0.00021917,2]
[385883331,1758091846241,-246.49381528,0.00021917,2]
[385883332,1758091846251,-1163.96,0.00021917,2]
[385883333,1758091846261,-480.0,0.00021917,2]
[385883334,1758091846271,-480.0,0.00021917,2]
[385883335,1758091846280,-480.0,0.00021917,2]
[385883336,1758091846290,-480.0,0.00021917,2]
[385883337,1758091846299,-480.0,0.00021917,2]
[385883338,1758091846308,-480.0,0.00021917,2]
[385883339,1758091846317,-480.0,0.00021917,2]
[385883340,1758091846327,-480.0,0.00021917,2]
[385883341,1758091846336,-480.0,0.00021917,2]
[385883342,1758091846345,-480.0,0.00021917,2]
[385883343,1758091846354,-279.86533991,0.00021917,2]
[385883344,1758091846385,-200.13466009,0.00021917,2]
[385883345,1758091846394,-480.0,0.00021917,2]
[385883346,1758091846404,-521.76,0.00021917,2]
[385883347,1758091846414,-525.77,0.00021917,2]
[385883348,1758091846428,-480.0,0.00021917,2]
[385883349,1758091846438,-198.83064894,0.00021917,2]
[385883350,1758091846447,-480.0,0.00021917,2]
[385883351,1758091846458,-591.84,0.0002219,3]
[385883352,1758091846468,-480.0,0.00022191,3]
[385883353,1758091846478,-2339.93,0.00022191,3]
[385883354,1758091846487,-427.5,0.00022191,3]
[385883355,1758091846497,-480.0,0.00022191,3]
[385883356,1758091846506,-989.07375346,0.00022191,3]
[385883357,1758091858759,565.73993333,0.000199,2]
[385883358,1758091858892,565.73993324,0.00021149,2]
[385883359,1758092051934,503.90642969,0.000199,2]
[385883360,1758092052024,503.90642959,0.00021149,2]
[385883361,1758092240696,492.46823123,0.000199,2]
[385883362,1758092240786,492.46823123,0.00021149,2]
[385883372,1758092426265,474.09441511,0.000199,2]
[385883373,1758092426360,474.09441496,0.00021149,2]
[385883374,1758092447565,1003.3190959,0.0003029,50]
[385883375,1758092505718,-4509.64,0.00021621,2]
[385883376,1758092508059,-980.73,0.00021621,2]
[385883377,1758092589781,5420.49,0.00021766,2]
[385883378,1758092621149,442.4881209,0.000199,2]
[385883379,1758092621395,442.48812062,0.00021149,2]
[385883381,1758092726018,-4648.5,0.00021625,2]
[385883382,1758092766122,-4707.67,0.0002162,2]
[385883383,1758092813339,396.66035048,0.000199,2]
[385883384,1758092813424,396.66035036,0.00021149,2]
[385883385,1758092856308,-4767.58,0.00021651,2]
[385883386,1758093001609,370.21632708,0.000199,2]
[385883387,1758093001696,370.216327,0.00021149,2]
[385883418,1758093038444,-2283.57930704,0.00021817,2]
[385883420,1758093038456,-3515.68720707,0.00021817,2]
[385883422,1758093038466,-285.95,0.00021907,10]
[385883423,1758093038475,-241.0,0.00021915,2]
[385883424,1758093038484,-27.41074124,0.00021915,2]
[385883425,1758093038496,-263.58925876,0.00021915,2]
[385883426,1758093038505,-500.0,0.00021916,2]
[385883427,1758093038514,-500.0,0.00021916,2]
[385883428,1758093038524,-500.0,0.00021916,2]
[385883429,1758093038532,-356.24074124,0.00021916,2]
[385883430,1758093038544,-108.20318339,0.00021916,2]
[385883431,1758093038554,-165.9521124,0.00021916,2]
[385883432,1758093038563,-500.0,0.00021916,2]
[385883433,1758093038572,-516.95559729,0.00021916,2]
[385883434,1758093038581,-51.3597827,0.00021916,2]
[385883435,1758093038597,-117.23588437,0.00021916,2]
[385883436,1758093038606,-568.26602515,0.00021916,2]
[385883437,1758093038615,-621.8620294,0.00021916,2]
[385883438,1758093038624,-229.19116874,0.00021916,7]
[385883452,1758093043990,-1770.80883126,0.00021916,7]
[385883454,1758093043999,-403.67609279,0.00021916,7]
[385883455,1758093044009,-963.98076245,0.00021917,2]
[385883456,1758093044019,-480.0,0.00021917,2]
[385883457,1758093044028,-480.0,0.00021917,2]
[385883458,1758093044038,-480.0,0.00021917,2]
[385883459,1758093044052,-520.0,0.00021917,3]
[385883460,1758093044061,-480.0,0.00021917,2]
[385883461,1758093044070,-480.0,0.00021917,2]
[385883462,1758093044079,-484.99502789,0.00021917,2]
[385883463,1758093044090,-480.0,0.00021917,2]
[385883464,1758093044099,-480.0,0.00021917,2]
[385883465,1758093044109,-480.0,0.00021917,2]
[385883466,1758093044119,-590.18718213,0.00021917,2]
[385883467,1758093044129,-480.0,0.00021917,2]
[385883468,1758093044138,-480.0,0.00021917,2]
[385883469,1758093044147,-480.0,0.00021917,2]
[385883470,1758093044157,-480.0,0.00021917,2]
[385883471,1758093044167,-480.0,0.00021917,2]
[385883472,1758093044175,-480.0,0.00021917,2]
[385883473,1758093044184,-480.0,0.00021917,2]
[385883474,1758093044194,-480.0,0.00021917,2]
[385883475,1758093044203,-197.36469336,0.00021917,2]
[385883476,1758093044212,-480.0,0.00021917,2]
[385883477,1758093044221,-480.0,0.00021917,2]
[385883478,1758093044231,-480.0,0.00021917,2]
[385883479,1758093044240,-480.0,0.00021917,2]
[385883480,1758093044249,-480.0,0.00021917,2]
[385883481,1758093044259,-480.0,0.00021917,2]
[385883482,1758093044268,-480.0,0.00021917,2]
[385883483,1758093044277,-480.0,0.00021917,2]
[385883484,1758093044286,-480.0,0.00021917,2]
[385883485,1758093044295,-480.0,0.00021917,2]
[385883486,1758093044304,-480.0,0.00021917,2]
[385883487,1758093044314,-480.0,0.00021917,2]
[385883488,1758093044323,-480.0,0.00021917,2]
[385883489,1758093044332,-480.0,0.00021917,2]
[385883490,1758093044341,-480.0,0.00021917,2]
[385883491,1758093044350,-480.0,0.00021917,2]
[385883492,1758093044360,-480.0,0.00021917,2]
[385883493,1758093044369,-480.0,0.00021917,2]
[385883494,1758093044379,-500.0,0.00021917,2]
[385883495,1758093044388,-480.0,0.00021917,2]
[385883496,1758093044397,-480.0,0.00021917,2]
[385883497,1758093044407,-846.15,0.00021917,2]
[385883498,1758093044417,-480.0,0.00021917,2]
[385883499,1758093044426,-480.0,0.00021917,2]
[385883500,1758093044436,-480.0,0.00021917,2]
[385883501,1758093044445,-480.0,0.00021917,2]
[385883502,1758093044455,-480.0,0.00021917,2]
[385883503,1758093044464,-480.0,0.00021917,2]
[385883504,1758093044474,-480.0,0.00021917,2]
[385883505,1758093044483,-480.0,0.00021917,2]
[385883506,1758093044492,-480.0,0.00021917,2]
[385883507,1758093044502,-480.0,0.00021917,2]
[385883508,1758093044512,-500.0,0.00021917,2]
[385883509,1758093044521,-480.0,0.00021917,2]
[385883510,1758093044531,-480.0,0.00021917,2]
[385883511,1758093044540,-480.0,0.00021917,2]
[385883512,1758093044549,-480.0,0.00021917,2]
[385883513,1758093044559,-480.0,0.00021917,2]
[385883514,1758093044568,-79.2888898,0.00021917,2]
[385883515,1758093044580,-400.7111102,0.00021917,2]
[385883516,1758093044590,-478.95441865,0.00021917,2]
[385883517,1758093044599,-480.0,0.00021917,2]
[385883518,1758093044608,-480.0,0.00021917,2]
[385883519,1758093044617,-480.0,0.00021917,2]
[385883520,1758093044627,-480.0,0.00021917,2]
[385883521,1758093044745,-480.0,0.00021917,2]
[385883522,1758093044754,-488.66203036,0.00021917,2]
[385883523,1758093044764,-480.0,0.00021917,2]
[385883524,1758093044773,-2274.32,0.00021917,2]
[385883525,1758093044782,-480.0,0.00021917,2]
[385883526,1758093044791,-480.0,0.00021917,2]
[385883527,1758093044800,-480.0,0.00021917,2]
[385883528,1758093044809,-480.0,0.00021917,2]
[385883529,1758093044819,-480.0,0.00021917,2]
[385883530,1758093044828,-480.0,0.00021917,2]
[385883531,1758093044837,-480.0,0.00021917,2]
[385883532,1758093044846,-480.0,0.00021917,2]
[385883533,1758093044856,-475.20430003,0.00021917,2]
[385883546,1758093046624,-4.79569997,0.00021917,2]
[385883547,1758093046634,-480.0,0.00021917,2]
[385883548,1758093046643,-480.0,0.00021917,2]
[385883549,1758093046653,-480.0,0.00021917,2]
[385883550,1758093046662,-751.17,0.00021917,2]
[385883551,1758093046671,-480.0,0.00021917,2]
[385883552,1758093046681,-480.0,0.00021917,2]
[385883553,1758093046690,-722.86,0.00021917,2]
[385883554,1758093046699,-689.87,0.00021917,2]
[385883555,1758093046708,-32.81308697,0.00021917,2]
[385883556,1758093046813,-447.18691303,0.00021917,2]
[385883557,1758093046822,-480.0,0.00021917,2]
[385883558,1758093046832,-500.0,0.00021917,2]
[385883559,1758093046841,-480.0,0.00021917,2]
[385883560,1758093046850,-480.0,0.00021917,2]
[385883561,1758093046859,-480.0,0.00021917,2]
[385883562,1758093046868,-1454.65,0.00021917,2]
[385883563,1758093046877,-1049.21,0.00021917,2]
[385883564,1758093046887,-1490.07,0.00021917,2]
[385883565,1758093046895,-480.0,0.00021917,2]
[385883566,1758093046905,-480.0,0.00021917,2]
[385883567,1758093046914,-480.0,0.00021917,2]
[385883568,1758093046924,-480.0,0.00021917,2]
[385883569,1758093046933,-480.0,0.00021917,2]
[385883570,1758093046942,-480.0,0.00021917,2]
[385883571,1758093046952,-480.0,0.00021917,2]
[385883572,1758093046961,-887.81,0.00021917,2]
[385883573,1758093046970,-480.0,0.00021917,2]
[385883574,1758093046979,-480.0,0.00021917,2]
[385883575,1758093046988,-1399.63,0.00021917,2]
[385883576,1758093046997,-480.0,0.00021917,2]
[385883577,1758093047006,-480.0,0.00021917,2]
[385883578,1758093047015,-480.0,0.00021917,2]
[385883579,1758093047025,-1279.48,0.00021917,2]
[385883580,1758093047034,-480.0,0.00021917,2]
[385883581,1758093047045,-480.0,0.00021917,2]